fUST/lending_fUST_20250219
["ID","MTS","AMOUNT","RATE_DAILY","PERIOD"]
[353554425,1739911838428,-500.0,0.00013698,2]
[353554426,1739911838437,-613.82,0.00013698,2]
[353554427,1739911838447,-728.07,0.00013698,2]
[353554428,1739911838456,-500.0,0.00013698,2]
[353554429,1739911838465,-500.0,0.00013698,2]
[353554430,1739911838474,-500.0,0.00013698,2]
[353554431,1739911838483,-536.5,0.00013698,2]
[353554432,1739911838493,-719.26,0.00013698,2]
[353554433,1739911838502,-500.0,0.00013698,2]
[353554434,1739911838511,-500.0,0.00013698,2]
[353554435,1739911838521,-500.0,0.00013698,2]
[353554436,1739911838530,-500.0,0.00013698,2]
[353554437,1739911838539,-513.88386975,0.00013698,2]
[353554438,1739911838548,-500.0,0.00013698,2]
[353554439,1739911838558,-502.97426491,0.00013698,2]
[353554440,1739911838567,-702.77,0.00013698,2]
[353554441,1739911838576,-500.0,0.00013698,2]
[353554442,1739911838586,-500.0,0.00013698,2]
[353554443,1739911838595,-500.0,0.00013698,2]
[353554444,1739911838605,-500.0,0.00013698,2]
[353554445,1739911838614,-500.0,0.00013698,2]
[353554446,1739911838624,-500.0,0.00013698,2]
[353554447,1739911838633,-500.0,0.00013698,2]
[353554448,1739911838643,-500.0,0.00013698,2]
[353554449,1739911838652,-500.0,0.00013698,2]
[353554450,1739911838661,-554.74,0.00013698,2]
[353554451,1739911838671,-500.0,0.00013698,2]
[353554452,1739911838680,-500.0,0.00013698,2]
[353554453,1739911838689,-500.0,0.00013698,2]
[353554454,1739911838699,-500.0,0.00013698,2]
[353554455,1739911838708,-500.0,0.00013698,2]
[353554456,1739911838718,-500.0,0.00013698,2]
[353554457,1739911838727,-500.0,0.00013698,2]
[353554458,1739911838736,-500.0,0.00013698,2]
[353554459,1739911838745,-500.0,0.00013698,2]
[353554460,1739911838755,-1843.09,0.00013698,2]
[353554461,1739911838764,-587.91385064,0.00013698,2]
[353554462,1739911838773,-500.0,0.00013698,2]
[353554463,1739911838782,-954.34,0.00013698,2]
[353554464,1739911838791,-325.16079662,0.00013698,2]
[353554465,1739911838800,-500.0,0.00013698,2]
[353554466,1739911838809,-500.0,0.00013698,2]
[353554467,1739911838819,-368.276175,0.00013698,2]
[353554468,1739911838828,-810.51,0.00013698,2]
[353554469,1739911838837,-500.0,0.00013698,2]
[353554470,1739911838847,-500.49395937,0.00013698,2]
[353554471,1739911838856,-500.0,0.00013698,2]
[353554472,1739911838865,-500.0,0.00013698,2]
[353554473,1739911838875,-500.0,0.00013698,2]
[353554474,1739911838885,-175.165891,0.00013699,2]
[353554475,1739911838894,-500.0,0.00013699,2]
[353554476,1739911838903,-500.0,0.00013699,2]
[353554477,1739911838912,-240.55044473,0.00013699,2]
[353554478,1739911838922,-384.23724604,0.00013699,2]
[353554479,1739911838931,-500.0,0.0001378,2]
[353554480,1739911838941,-500.0,0.0001378,2]
[353554481,1739911838950,-500.0,0.0001378,2]
[353554482,1739911838959,-500.0,0.0001378,2]
[353554483,1739911838969,-500.0,0.0001378,2]
[353554484,1739911838978,-500.0,0.0001378,2]
[353554485,1739911838987,-500.0,0.0001378,2]
[353554486,1739911838997,-500.0,0.0001378,2]
[353554487,1739911839007,-500.0,0.0001378,2]
[353554488,1739911839016,-500.0,0.0001378,2]
[353554489,1739911839026,-500.0,0.0001378,2]
[353554490,1739911839036,-500.0,0.0001378,2]
[353554491,1739911839046,-500.0,0.0001378,2]
[353554492,1739911839055,-432.60990439,0.0001378,2]
[353554508,1739911840511,-67.39009561,0.0001378,2]
[353554509,1739911840522,-500.0,0.0001378,2]
[353554510,1739911840531,-505.45,0.0001378,2]
[353554511,1739911840540,-500.0,0.0001378,2]
[353554512,1739911840549,-500.0,0.0001378,2]
[353554513,1739911840559,-500.0,0.0001378,2]
[353554514,1739911840568,-537.93,0.0001378,2]
[353554515,1739911840577,-500.0,0.0001378,2]
[353554516,1739911840587,-500.0,0.0001378,2]
[353554517,1739911840597,-500.0,0.0001378,2]
[353554518,1739911840606,-610.18,0.0001378,2]
[353554519,1739911840615,-500.0,0.0001378,2]
[353554520,1739911840624,-500.0,0.0001378,2]
[353554521,1739911840634,-500.0,0.0001378,2]
[353554522,1739911840644,-500.0,0.0001378,2]
[353554523,1739911840653,-500.0,0.0001378,2]
[353554524,1739911840664,-500.0,0.0001378,2]
[353554525,1739911840674,-500.0,0.0001378,2]
[353554526,1739911840684,-403.37732889,0.0001378,2]
[353554527,1739911840693,-500.0,0.0001378,2]
[353554528,1739911840703,-500.0,0.0001378,2]
[353554529,1739911840713,-723.16,0.0001378,2]
[353554530,1739911840722,-500.0,0.0001378,2]
[353554531,1739911840731,-500.0,0.0001378,2]
[353554532,1739911840741,-605.5,0.0001378,2]
[353554533,1739911840750,-500.0,0.0001378,2]
[353554534,1739911840760,-500.0,0.0001378,2]
[353554535,1739911840769,-500.0,0.0001378,2]
[353554536,1739911840779,-500.0,0.0001378,2]
[353554537,1739911840788,-500.0,0.0001378,2]
[353554538,1739911840799,-500.0,0.0001378,2]
[353554539,1739911840811,-500.0,0.0001378,2]
[353554540,1739911840821,-500.0,0.0001378,2]
[353554541,1739911840831,-501.44924452,0.0001378,2]
[353554542,1739911840840,-500.0,0.0001378,2]
[353554543,1739911840850,-500.0,0.0001378,2]
[353554544,1739911840860,-500.0,0.0001378,2]
[353554545,1739911840869,-500.0,0.0001378,2]
[353554546,1739911840879,-500.0,0.0001378,2]
[353554547,1739911840889,-500.0,0.0001378,2]
[353554548,1739911840899,-500.0,0.0001378,2]
[353554549,1739911840909,-500.0,0.0001378,2]
[353554550,1739911840919,-500.0,0.0001378,2]
[353554551,1739911840928,-500.0,0.0001378,2]
[353554552,1739911840938,-500.0,0.0001378,2]
[353554553,1739911840947,-500.0,0.0001378,2]
[353554554,1739911840956,-972.6,0.0001378,2]
[353554555,1739911840966,-500.0,0.0001378,2]
[353554556,1739911840975,-500.0,0.0001378,2]
[353554557,1739911840985,-311.19698643,0.0001378,2]
[353554558,1739911840994,-500.0,0.0001378,2]
[353554559,1739911841003,-1204.38,0.0001378,2]
[353554560,1739911841013,-500.0,0.0001378,2]
[353554561,1739911841023,-500.0,0.0001378,2]
[353554562,1739911841033,-742.77,0.0001378,2]
[353554563,1739911841042,-500.0,0.0001378,2]
[353554564,1739911841052,-652.29,0.0001378,2]
[353554565,1739911841061,-500.0,0.0001378,2]
[353554566,1739911841071,-500.0,0.0001378,2]
[353554567,1739911841081,-500.0,0.0001378,2]
[353554568,1739911841090,-73.0228451,0.0001378,2]
[353554569,1739911841103,-7553.9571549,0.0001378,2]
[353554570,1739911841113,-500.0,0.0001378,2]
[353554571,1739911841122,-1143.16,0.0001378,2]
[353554572,1739911841134,-2611.08,0.0001378,2]
[353554573,1739911841143,-19236.83,0.0001378,2]
[353554574,1739911841157,-500.0,0.0001378,2]
[353554575,1739911841167,-583.56,0.0001378,2]
[353554576,1739911841176,-520.31,0.0001378,2]
[353554577,1739911841186,-803.65,0.0001378,2]
[353554578,1739911841197,-500.0,0.0001378,2]
[353554579,1739911841206,-1534.37,0.0001378,2]
[353554580,1739911841215,-1344.1,0.0001378,2]
[353554581,1739911841226,-500.0,0.0001378,2]
[353554582,1739911841239,-2802.64,0.0001378,2]
[353554583,1739911841248,-308.07,0.0001378,2]
[353554584,1739911841258,-500.0,0.0001378,2]
[353554585,1739911841267,-500.0,0.0001378,2]
[353554586,1739911841277,-500.0,0.0001378,2]
[353554587,1739911841287,-500.0,0.0001378,2]
[353554588,1739911841297,-500.0,0.0001378,2]
[353554589,1739911841306,-500.0,0.0001378,2]
[353554590,1739911841316,-1530.52,0.0001378,2]
[353554591,1739911841327,-3919.27,0.0001378,2]
[353554592,1739911841338,-1626.48,0.0001378,2]
[353554593,1739911841348,-500.0,0.0001378,2]
[353554594,1739911841357,-613.82,0.0001378,2]
[353554595,1739911841366,-728.07,0.0001378,2]
[353554596,1739911841375,-500.0,0.0001378,2]
[353554597,1739911841384,-500.0,0.0001378,2]
[353554598,1739911841392,-536.5,0.0001378,2]
[353554599,1739911841402,-719.26,0.0001378,2]
[353554600,1739911841411,-500.0,0.0001378,2]
[353554601,1739911841421,-500.0,0.0001378,2]
[353554602,1739911841430,-500.0,0.0001378,2]
[353554603,1739911841440,-702.77,0.0001378,2]
[353554604,1739911841450,-500.0,0.0001378,2]
[353554605,1739911841459,-500.0,0.0001378,2]
[353554606,1739911841469,-500.0,0.0001378,2]
[353554607,1739911841479,-500.0,0.0001378,2]
[353554608,1739911841488,-569.61630298,0.0001378,2]
[353554609,1739911841498,-500.0,0.0001378,2]
[353554610,1739911841507,-500.0,0.0001378,2]
[353554611,1739911841516,-500.0,0.0001378,2]
[353554612,1739911841527,-554.74,0.0001378,2]
[353554613,1739911841536,-500.0,0.0001378,2]
[353554614,1739911841547,-500.0,0.0001378,2]
[353554615,1739911841556,-500.0,0.0001378,2]
[353554616,1739911841567,-500.0,0.0001378,2]
[353554617,1739911841577,-500.0,0.0001378,2]
[353554618,1739911841586,-515.97559689,0.0001378,2]
[353554619,1739911841596,-500.0,0.0001378,2]
[353554620,1739911841605,-500.0,0.0001378,2]
[353554621,1739911841615,-1843.09,0.0001378,2]
[353554622,1739911841626,-500.0,0.0001378,2]
[353554623,1739911841635,-954.34,0.0001378,2]
[353554624,1739911841645,-810.51,0.0001378,2]
[353554625,1739911841654,-500.0,0.0001378,2]
[353554626,1739911841664,-443.71291464,0.0001378,2]
[353554627,1739911841674,-500.0,0.0001378,2]
[353554628,1739911841683,-449.78377754,0.00013863,2]
[353554629,1739911841693,-500.0,0.00013863,2]
[353554630,1739911841703,-500.0,0.00013863,2]
[353554631,1739911841713,-500.0,0.00013863,2]
[353554632,1739911841723,-500.0,0.00013863,2]
[353554633,1739911841732,-500.0,0.00013863,2]
[353554634,1739911841741,-500.0,0.00013863,2]
[353554635,1739911841751,-500.0,0.00013863,2]
[353554636,1739911841761,-500.0,0.00013863,2]
[353554637,1739911841770,-500.0,0.00013863,2]
[353554638,1739911841781,-500.0,0.00013863,2]
[353554639,1739911841791,-505.45,0.00013863,2]
[353554640,1739911841800,-500.0,0.00013863,2]
[353554641,1739911841810,-500.0,0.00013863,2]
[353554642,1739911841820,-500.0,0.00013863,2]
[353554643,1739911841829,-537.93,0.00013863,2]
[353554644,1739911841839,-520.48,0.00013863,2]
[353554645,1739911841848,-500.0,0.00013863,2]
[353554646,1739911841858,-610.18,0.00013863,2]
[353554647,1739911841868,-500.0,0.00013863,2]
[353554648,1739911841878,-500.0,0.00013863,2]
[353554649,1739911841887,-500.0,0.00013863,2]
[353554650,1739911841897,-500.0,0.00013863,2]
[353554651,1739911841907,-500.0,0.00013863,2]
[353554652,1739911841917,-500.0,0.00013863,2]
[353554653,1739911841926,-500.0,0.00013863,2]
[353554654,1739911841935,-500.0,0.00013863,2]
[353554655,1739911841946,-723.16,0.00013863,2]
[353554656,1739911841955,-500.0,0.00013863,2]
[353554657,1739911841965,-500.0,0.00013863,2]
[353554658,1739911841975,-605.5,0.00013863,2]
[353554659,1739911841985,-500.0,0.00013863,2]
[353554660,1739911841994,-500.0,0.00013863,2]
[353554661,1739911842115,-500.0,0.00013863,2]
[353554662,1739911842126,-500.0,0.00013863,2]
[353554663,1739911842136,-500.0,0.00013863,2]
[353554664,1739911842151,-500.0,0.00013863,2]
[353554665,1739911842166,-500.0,0.00013863,2]
[353554666,1739911842175,-500.0,0.00013863,2]
[353554667,1739911842185,-500.0,0.00013863,2]
[353554668,1739911842194,-500.0,0.00013863,2]
[353554669,1739911842205,-500.0,0.00013863,2]
[353554670,1739911842215,-548.3286958,0.00013863,2]
[353554671,1739911842225,-500.0,0.00013863,2]
[353554672,1739911842235,-546.17,0.00013863,2]
[353554673,1739911842245,-500.0,0.00013863,2]
[353554674,1739911842255,-500.0,0.00013863,2]
[353554675,1739911842265,-500.0,0.00013863,2]
[353554676,1739911842275,-500.0,0.00013863,2]
[353554677,1739911842284,-384.54830207,0.00013863,2]
[353554678,1739911842294,-972.6,0.00013863,2]
[353554679,1739911842303,-500.0,0.00013863,2]
[353554680,1739911842313,-500.0,0.00013863,2]
[353554681,1739911842323,-500.0,0.00013863,2]
[353554682,1739911842333,-1204.38,0.00013863,2]
[353554683,1739911842342,-500.0,0.00013863,2]
[353554684,1739911842352,-500.0,0.00013863,2]
[353554685,1739911842362,-742.77,0.00013863,2]
[353554686,1739911842371,-652.29,0.00013863,2]
[353554687,1739911842381,-500.0,0.00013863,2]
[353554688,1739911842391,-500.0,0.00013863,2]
[353554689,1739911842401,-500.0,0.00013863,2]
[353554690,1739911842411,-7626.98,0.00013863,2]
[353554691,1739911842421,-500.0,0.00013863,2]
[353554692,1739911842431,-1143.16,0.00013863,2]
[353554693,1739911842441,-2611.08,0.00013863,2]
[353554694,1739911842451,-500.0,0.00013863,2]
[353554695,1739911842460,-19236.83,0.00013863,2]
[353554696,1739911842470,-583.56,0.00013863,2]
[353554697,1739911842480,-520.31,0.00013863,2]
[353554698,1739911842490,-803.65,0.00013863,2]
[353554699,1739911842499,-1534.37,0.00013863,2]
[353554700,1739911842509,-500.0,0.00013863,2]
[353554701,1739911842518,-1344.1,0.00013863,2]
[353554702,1739911842528,-500.0,0.00013863,2]
[353554703,1739911842537,-2802.64,0.00013863,2]
[353554704,1739911842548,-500.0,0.00013863,2]
[353554705,1739911842558,-504.72747428,0.00013863,2]
[353554706,1739911842568,-500.0,0.00013863,2]
[353554707,1739911842578,-500.0,0.00013863,2]
[353554708,1739911842589,-500.0,0.00013863,2]
[353554709,1739911842599,-500.0,0.00013863,2]
[353554710,1739911842609,-1530.52,0.00013863,2]
[353554711,1739911842619,-3919.27,0.00013863,2]
[353554712,1739911842629,-1626.48,0.00013863,2]
[353554713,1739911842639,-500.0,0.00013863,2]
[353554714,1739911842649,-613.82,0.00013863,2]
[353554715,1739911842658,-728.07,0.00013863,2]
[353554716,1739911842667,-500.0,0.00013863,2]
[353554717,1739911842677,-500.0,0.00013863,2]
[353554718,1739911842687,-536.5,0.00013863,2]
[353554719,1739911842696,-719.26,0.00013863,2]
[353554720,1739911842705,-500.0,0.00013863,2]
[353554721,1739911842715,-702.77,0.00013863,2]
[353554722,1739911842724,-500.0,0.00013863,2]
[353554723,1739911842734,-500.0,0.00013863,2]
[353554724,1739911842743,-500.0,0.00013863,2]
[353554725,1739911842753,-500.0,0.00013863,2]
[353554726,1739911842763,-500.0,0.00013863,2]
[353554727,1739911842772,-500.0,0.00013863,2]
[353554728,1739911842782,-554.74,0.00013863,2]
[353554729,1739911842791,-500.0,0.00013863,2]
[353554730,1739911842801,-275.15,0.00013863,2]
[353554731,1739911842810,-500.0,0.00013863,2]
[353554732,1739911842820,-500.0,0.00013863,2]
[353554733,1739911842830,-500.0,0.00013863,2]
[353554734,1739911842839,-500.0,0.00013863,2]
[353554735,1739911842848,-1843.09,0.00013863,2]
[353554736,1739911842857,-500.0,0.00013863,2]
[353554737,1739911842867,-954.34,0.00013863,2]
[353554738,1739911842876,-810.51,0.00013863,2]
[353554739,1739911842886,-500.0,0.00013863,2]
[353554740,1739911842895,-500.0,0.00013945,2]
[353554741,1739911842905,-500.0,0.00013945,2]
[353554742,1739911842914,-500.0,0.00013945,2]
[353554744,1739911842923,-500.0,0.00013945,2]
[353554746,1739911842933,-500.0,0.00013945,2]
[353554748,1739911842943,-500.0,0.00013945,2]
[353554750,1739911842952,-500.0,0.00013945,2]
[353554751,1739911842961,-500.0,0.00013945,2]
[353554752,1739911842971,-500.0,0.00013945,2]
[353554753,1739911842982,-505.45,0.00013945,2]
[353554755,1739911842992,-500.0,0.00013945,2]
[353554757,1739911843003,-500.0,0.00013945,2]
[353554759,1739911843013,-500.0,0.00013945,2]
[353554761,1739911843022,-537.93,0.00013945,2]
[353554763,1739911843032,-500.0,0.00013945,2]
[353554765,1739911843043,-610.18,0.00013945,2]
[353554766,1739911843053,-500.0,0.00013945,2]
[353554768,1739911843062,-500.0,0.00013945,2]
[353554770,1739911843071,-500.0,0.00013945,2]
[353554772,1739911843082,-500.0,0.00013945,2]
[353554774,1739911843092,-500.0,0.00013945,2]
[353554775,1739911843102,-500.0,0.00013945,2]
[353554776,1739911843112,-500.0,0.00013945,2]
[353554777,1739911843122,-619.87838707,0.00013945,2]
[353554778,1739911843133,-723.16,0.00013945,2]
[353554780,1739911843142,-500.0,0.00013945,2]
[353554781,1739911843152,-500.0,0.00013945,2]
[353554782,1739911843165,-605.5,0.00013945,2]
[353554783,1739911843176,-500.0,0.00013945,2]
[353554784,1739911843186,-500.0,0.00013945,2]
[353554785,1739911843198,-500.0,0.00013945,2]
[353554786,1739911843208,-426.13,0.00013945,2]
[353554787,1739911843217,-500.0,0.00013945,2]
[353554788,1739911843227,-500.0,0.00013945,2]
[353554789,1739911843236,-500.0,0.00013945,2]
[353554790,1739911843247,-500.0,0.00013945,2]
[353554792,1739911843257,-500.0,0.00013945,2]
[353554793,1739911843267,-500.0,0.00013945,2]
[353554794,1739911843277,-359.49719466,0.00013945,2]
[353554795,1739911843287,-500.0,0.00013945,2]
[353554796,1739911843299,-500.0,0.00013945,2]
[353554798,1739911843308,-972.6,0.00013945,2]
[353554799,1739911843318,-500.0,0.00013945,2]
[353554800,1739911843328,-500.0,0.00013945,2]
[353554801,1739911843337,-1204.38,0.00013945,2]
[353554802,1739911843346,-500.0,0.00013945,2]
[353554803,1739911843356,-500.0,0.00013945,2]
[353554804,1739911843366,-742.77,0.00013945,2]
[353554805,1739911843375,-652.29,0.00013945,2]
[353554806,1739911843385,-500.0,0.00013945,2]
[353554807,1739911843395,-500.0,0.00013945,2]
[353554808,1739911843404,-500.0,0.00013945,2]
[353554809,1739911843414,-7626.98,0.00013945,2]
[353554810,1739911843423,-500.0,0.00013945,2]
[353554811,1739911843433,-1143.16,0.00013945,2]
[353554812,1739911843443,-2611.08,0.00013945,2]
[353554813,1739911843452,-500.0,0.00013945,2]
[353554814,1739911843462,-19236.83,0.00013945,2]
[353554815,1739911843471,-583.56,0.00013945,2]
[353554816,1739911843480,-520.31,0.00013945,2]
[353554817,1739911843490,-803.65,0.00013945,2]
[353554818,1739911843499,-1534.37,0.00013945,2]
[353554819,1739911843509,-500.0,0.00013945,2]
[353554820,1739911843518,-1344.1,0.00013945,2]
[353554821,1739911843527,-500.0,0.00013945,2]
[353554822,1739911843537,-2802.64,0.00013945,2]
[353554823,1739911843546,-500.0,0.00013945,2]
[353554824,1739911843556,-500.0,0.00013945,2]
[353554825,1739911843565,-500.0,0.00013945,2]
[353554826,1739911843574,-500.0,0.00013945,2]
[353554827,1739911843583,-500.0,0.00013945,2]
[353554828,1739911843592,-1530.52,0.00013945,2]
[353554829,1739911843602,-3919.27,0.00013945,2]
[353554830,1739911843613,-1626.48,0.00013945,2]
[353554831,1739911843622,-500.0,0.00013945,2]
[353554832,1739911843632,-613.82,0.00013945,2]
[353554833,1739911843641,-728.07,0.00013945,2]
[353554834,1739911843651,-500.0,0.00013945,2]
[353554835,1739911843660,-500.0,0.00013945,2]
[353554836,1739911843670,-536.5,0.00013945,2]
[353554837,1739911843679,-719.26,0.00013945,2]
[353554838,1739911843689,-500.0,0.00013945,2]
[353554839,1739911843698,-702.77,0.00013945,2]
[353554840,1739911843708,-500.0,0.00013945,2]
[353554841,1739911843717,-500.0,0.00013945,2]
[353554842,1739911843726,-500.0,0.00013945,2]
[353554843,1739911843735,-500.0,0.00013945,2]
[353554844,1739911843744,-533.56,0.00013945,2]
[353554845,1739911843753,-500.0,0.00013945,2]
[353554846,1739911843762,-554.74,0.00013945,2]
[353554847,1739911843771,-500.0,0.00013945,2]
[353554848,1739911843781,-500.0,0.00013945,2]
[353554849,1739911843790,-500.0,0.00013945,2]
[353554850,1739911843799,-1843.09,0.00013945,2]
[353554851,1739911843808,-500.0,0.00013945,2]
[353554852,1739911843817,-954.34,0.00013945,2]
[353554853,1739911843828,-810.51,0.00013945,2]
[353554854,1739911843838,-500.0,0.00013945,2]
[353554855,1739911843846,-420.0,0.0001395,2]
[353554856,1739911843854,-349.57677234,0.00013973,2]
[353554857,1739911843864,-500.0,0.00013973,2]
[353554858,1739911843873,-631.18133988,0.00013973,2]
[353554859,1739911843883,-669.33383376,0.00013987,2]
[353554860,1739911843893,-669.33383376,0.00013994,2]
[353554861,1739911843902,-669.33383376,0.00013997,2]
[353554862,1739911843912,-111578.93230049,0.00014,2]
[353554863,1739911843921,-500.0,0.0001401,2]
[353554864,1739911843931,-500.0,0.00014027,2]
[353554865,1739911843941,-500.0,0.00014027,2]
[353554866,1739911843950,-500.0,0.00014027,2]
[353554867,1739911843960,-500.0,0.00014027,2]
[353554868,1739911843969,-500.0,0.00014027,2]
[353554869,1739911843978,-500.0,0.00014027,2]
[353554870,1739911843988,-500.0,0.00014027,2]
[353554871,1739911843997,-505.45,0.00014027,2]
[353554872,1739911844006,-500.0,0.00014027,2]
[353554873,1739911844016,-500.0,0.00014027,2]
[353554874,1739911844025,-500.0,0.00014027,2]
[353554875,1739911844034,-537.93,0.00014027,2]
[353554876,1739911844044,-187.07,0.00014027,2]
[353554877,1739911844054,-610.18,0.00014027,2]
[353554878,1739911844063,-500.0,0.00014027,2]
[353554879,1739911844073,-500.0,0.00014027,2]
[353554880,1739911844082,-500.0,0.00014027,2]
[353554881,1739911844092,-500.0,0.00014027,2]
[353554882,1739911844102,-500.0,0.00014027,2]
[353554883,1739911844111,-500.0,0.00014027,2]
[353554884,1739911844120,-500.0,0.00014027,2]
[353554885,1739911844130,-723.16,0.00014027,2]
[353554886,1739911844139,-500.0,0.00014027,2]
[353554887,1739911844149,-500.0,0.00014027,2]
[353554888,1739911844163,-605.5,0.00014027,2]
[353554889,1739911844172,-500.0,0.00014027,2]
[353554890,1739911844181,-500.0,0.00014027,2]
[353554891,1739911844190,-500.0,0.00014027,2]
[353554892,1739911844201,-500.0,0.00014027,2]
[353554893,1739911844210,-500.0,0.00014027,2]
[353554894,1739911844219,-500.0,0.00014027,2]
[353554895,1739911844228,-500.0,0.00014027,2]
[353554896,1739911844238,-500.0,0.00014027,2]
[353554897,1739911844247,-500.0,0.00014027,2]
[353554898,1739911844257,-500.0,0.00014027,2]
[353554899,1739911844267,-972.6,0.00014027,2]
[353554900,1739911844276,-500.0,0.00014027,2]
[353554901,1739911844285,-500.0,0.00014027,2]
[353554902,1739911844295,-1204.38,0.00014027,2]
[353554903,1739911844304,-500.0,0.00014027,2]
[353554904,1739911844314,-559.9939918,0.00014027,2]
[353554905,1739911844323,-742.77,0.00014027,2]
[353554906,1739911844334,-652.29,0.00014027,2]
[353554907,1739911844343,-500.0,0.00014027,2]
[353554908,1739911844352,-500.0,0.00014027,2]
[353554909,1739911844363,-500.0,0.00014027,2]
[353554910,1739911844372,-7626.98,0.00014027,2]
[353554911,1739911844383,-500.0,0.00014027,2]
[353554912,1739911844392,-1143.16,0.00014027,2]
[353554913,1739911844402,-2611.08,0.00014027,2]
[353554914,1739911844411,-19236.83,0.00014027,2]
[353554915,1739911844420,-583.56,0.00014027,2]
[353554916,1739911844429,-520.31,0.00014027,2]
[353554917,1739911844438,-803.65,0.00014027,2]
[353554918,1739911844447,-1534.37,0.00014027,2]
[353554919,1739911844455,-500.0,0.00014027,2]
[353554920,1739911844463,-1344.1,0.00014027,2]
[353554921,1739911844471,-500.0,0.00014027,2]
[353554922,1739911844480,-2802.64,0.00014027,2]
[353554923,1739911844488,-500.0,0.00014027,2]
[353554924,1739911844496,-500.0,0.00014027,2]
[353554925,1739911844504,-500.0,0.00014027,2]
[353554926,1739911844513,-554.04,0.00014027,2]
[353554927,1739911844521,-500.0,0.00014027,2]
[353554928,1739911844529,-1530.52,0.00014027,2]
[353554929,1739911844537,-3919.27,0.00014027,2]
[353554930,1739911844545,-1626.48,0.00014027,2]
[353554931,1739911844553,-500.0,0.00014027,2]
[353554932,1739911844561,-613.82,0.00014027,2]
[353554933,1739911844570,-728.07,0.00014027,2]
[353554934,1739911844578,-500.0,0.00014027,2]
[353554935,1739911844585,-500.0,0.00014027,2]
[353554936,1739911844594,-536.5,0.00014027,2]
[353554937,1739911844602,-719.26,0.00014027,2]
[353554938,1739911844610,-702.77,0.00014027,2]
[353554939,1739911844618,-500.0,0.00014027,2]
[353554940,1739911844626,-500.0,0.00014027,2]
[353554941,1739911844635,-500.0,0.00014027,2]
[353554942,1739911844642,-500.0,0.00014027,2]
[353554943,1739911844650,-210.53,0.00014027,2]
[353554944,1739911844659,-554.74,0.00014027,2]
[353554945,1739911844668,-500.0,0.00014027,2]
[353554946,1739911844678,-424.15870524,0.00014027,2]
[353554947,1739911844687,-500.0,0.00014027,2]
[353554948,1739911844792,-1843.09,0.00014027,2]
[353554949,1739911844802,-500.0,0.00014027,2]
[353554950,1739911844811,-954.34,0.00014027,2]
[353554951,1739911844821,-810.51,0.00014027,2]
[353554952,1739911844831,-246.99571098,0.00014079,2]
[353554953,1739911844840,-500.0,0.00014109,2]
[353554954,1739911844850,-500.0,0.00014109,2]
[353554955,1739911844859,-500.0,0.00014109,2]
[353554956,1739911844868,-500.0,0.00014109,2]